Cogmind - Beta 14 @@@ ROGUE MODE // 2024.08.18 @ 20:08:33 Player: TheProctologist Result: Destroyed by M9-F53(R) with Subdweller Beam Cannon Performance ------------- Evolutions (0) 0 Regions Visited (3) 600 Robots Destroyed (36) 180 Value Destroyed (795) 795 Prototype IDs (11) 220 Alien Tech Used (0) 0 Bonus (84) 84 TOTAL SCORE: 1879 Bonus ------- Follower Combat Kills 84 Cogmind --------- Core Integrity 0/250 Matter 300/300 Energy 100/100 System Corruption 0% Temperature Cool (9) Movement Walking (260) Ox2 Location -10/Subcaves Parts ------- > --- POWER (1) -------- (None) > --- PROPULSION (2) --- Aluminum Leg > --- UTILITY (2) ------ Large Storage Unit Improved Targeting Computer > --- WEAPON (2) ------- Great Maul > --- INVENTORY (15) --- Light Ion Engine Advanced Treads Improved Heat Sink Cooling System Large Battery (200) Compact Matter Pod (150) Experimental Sensor Array Improved Targeting Computer Improved Light Armor Plating Gun Armor Makeshift Hacking Suite Slug Cannon Datajack Shrapnel Trap Piercing Trap Peak State ------------ > --- POWER ------------ Ion Engine > --- PROPULSION ------- Aluminum Leg > --- UTILITY ---------- Large Storage Unit Improved Targeting Computer > --- WEAPON ----------- Great Maul Makeshift Spear > --- INVENTORY -------- Light Ion Engine Advanced Treads Improved Heat Sink Cooling System Large Battery Compact Matter Pod Experimental Sensor Array Improved Targeting Computer Improved Light Armor Plating Gun Armor Makeshift Hacking Suite Subdweller Laser Datajack Shrapnel Trap Piercing Trap [Rating: 16] Favorites ----------- Power Ion Engine Engine Ion Engine Propulsion Light Treads Treads Light Treads Leg Aluminum Leg Utility Improved Targeting Computer Device Improved Terrain Scanner Storage Large Storage Unit Processor Improved Targeting Computer Weapon Particle Gun Energy Gun Particle Gun Ballistic Cannon Slug Cannon Launcher Grenade Launcher Special Weapon Mining Laser Impact Weapon Great Maul Piercing Weapon Makeshift Spear Build | -11 -10 -10 -10 ------- Run | Yrd Mat Min Sub Slots Evolved . | . . . . Power . | . . . . Propulsion . | . . . . Utility . | . . . . Weapon . | . . . . Parts Attached 28 | 8 8 1 11 Power 2 | 1 . . 1 Engine 2 | 1 . . 1 Core . | . . . . Reactor . | . . . . Propulsion 3 | 2 . . 1 Treads 2 | 2 . . . Leg 1 | . . . 1 Wheel . | . . . . Hover . | . . . . Flight . | . . . . Utility 4 | 2 2 . . Device 1 | 1 . . . Storage 2 | 1 1 . . Processor 1 | . 1 . . Hackware . | . . . . Protection . | . . . . Artifact . | . . . . Weapon 19 | 3 6 1 9 Energy Gun 10 | 3 4 . 3 Energy Cannon . | . . . . Ballistic Gun . | . . . . Ballistic Cannon 1 | . . . 1 Launcher 4 | . 2 1 1 Special Weapon 1 | . . . 1 Impact Weapon 2 | . . . 2 Slashing Weapon . | . . . . Piercing Weapon 1 | . . . 1 Special Melee Weapon . | . . . . Unidentified Prototypes . | . . . . Parts Lost 7 | . . . 7 Power 2 | . . . 2 Propulsion 2 | . . . 2 Utility . | . . . . Weapon 3 | . . . 3 Highest Loss Streak 5 | . . . 5 To Critical Strikes . | . . . . Average Slot Usage (%) 92 | . 100 100 87 Engine 12 | . 14 14 12 Treads 16 | . 28 28 9 Leg 5 | . . . 9 Storage 14 | . 14 14 14 Processor 13 | . 13 14 14 Energy Gun 12 | . 22 14 9 Launcher 7 | . 5 14 5 Impact Weapon 3 | . . . 6 Piercing Weapon 3 | . . . 5 Peak Build Rating 16 | 9 11 12 16 Average Rating 12 | 6 10 11 13 On Entrance 8 | . 9 11 12 Naked Turns . | . . . . Heaviest Build 33 | 14 31 31 33 Greatest Support 40 | 40 40 40 40 Greatest Overweight (x) 8 | 1 . . 8 Average Overweight (x) . | . . . 1 Largest Inventory Capacity 15 | 8 15 15 15 Average Capacity 14 | 7 10 15 15 Most Carried 15 | 4 11 15 15 Average Carried 13 | 2 8 14 14 Final Capacity 15 | 8 15 15 15 Final Carried 15 | 4 11 15 15 Class Distribution -------------------- 100% | Mutant Dominant Class ---------------- Mutant | -10/Materials Mutant | -10/Mines Mutant | -10/Subcaves Resources | -11 -10 -10 -10 ----------- Run | Yrd Mat Min Sub Matter Collected 771 | 280 101 238 152 Remotely . | . . . . Salvage Created 762 | 121 392 73 176 Parts 68 | 4 39 10 15 Haulers Intercepted 1 | . 1 . . Recyclers Shooed 1 | . 1 . . Parts Field Recycled . | . . . . Retrieved Matter . | . . . . Parts Self-Destructed 14 | . . . 14 Prevented . | . . . . Kills | -11 -10 -10 -10 ------- Run | Yrd Mat Min Sub Combat Hostiles Destroyed 26 | . 14 5 7 Melee 1 | . . . 1 Guns 8 | . 7 1 . Cannons 1 | . . . 1 AOE 16 | . 7 4 5 Classes Destroyed 10 | 3 6 . 1 Worker 2 | 1 1 . . Tunneler 1 | 1 . . . Hauler 1 | . 1 . . Recycler 1 | 1 . . . Mechanic 1 | . 1 . . Operator 1 | . 1 . . Watcher 3 | . 3 . . Swarmer 15 | . 9 3 3 Grunt 7 | . 5 2 . Subdweller 4 | . . . 4 Best Kill Streak 6 | 2 6 3 3 Combat Bots Only 4 | . 4 3 3 Max Kills in Single Turn 4 | 1 4 3 3 Gunslinging . | . . . . Exploded 3 | . 3 3 3 Melee 1 | . . . 1 Uniques/NPCs Destroyed . | . . . . Combat | -11 -10 -10 -10 -------- Run | Yrd Mat Min Sub Hostile Shots Fired 82 | . 27 15 40 Missed 24 | . 7 3 14 Damage Taken 1076 | . 194 155 727 Core 257 | . 29 10 218 Absorbed by Shields . | . . . . Core Remaining (%) 100 | 100 . . . Volleys Fired 49 | 9 21 4 15 Largest 2 | 2 2 2 2 Hottest 130 | 90 130 130 125 Shots Fired 89 | 18 42 8 21 Gun 68 | 18 34 5 11 Cannon 2 | . . . 2 Launcher 16 | . 8 3 5 Special 3 | . . . 3 Kinetic 2 | . . . 2 Thermal 71 | 18 34 5 14 Explosive 16 | . 8 3 5 Electromagnetic . | . . . . Robot Hit Streak 10 | 7 10 6 3 Robot Miss Streak 3 | 2 2 3 1 Penetration Max . | . . . . Secondary Targets . | . . . . Shots Hit Robots 57 | 13 25 4 15 Core Hits 42 | 4 24 6 8 Critical Kills . | . . . . Critical Parts Destroyed . | . . . . Critical Strikes 2 | 1 . . 1 Burn 1 | 1 . . . Smash 1 | . . . 1 Melee Attacks 16 | . . . 16 Impact 6 | . . . 6 Slashing . | . . . . Piercing 10 | . . . 10 Sneak Attacks . | . . . . Combat Hostiles . | . . . . Follow-up Attacks 1 | . . . 1 Damage Inflicted 2040 | 152 885 349 654 Guns 593 | 152 345 43 53 Cannons 45 | . . . 45 Explosions 1167 | . 528 296 343 Melee 213 | . . . 213 Ramming 22 | . 12 10 . Kinetic 45 | . . . 45 Thermal 717 | 152 345 167 53 Explosive 1043 | . 528 172 343 Electromagnetic . | . . . . Impact 93 | . . . 93 Slashing . | . . . . Piercing 120 | . . . 120 Highest Corruption . | . . . . Average Corruption . | . . . . Corruption Purged . | . . . . Corruption Blocked . | . . . . Overload Shots . | . . . . Overflow Damage 8 | . . 8 . Projectiles . | . . . . Explosions 8 | . . 8 . Melee . | . . . . Knockbacks 3 | . . . 3 Impact 2 | . . . 2 Kinetic . | . . . . Secondary 1 | . . . 1 Self-Inflicted Damage 39 | . 12 27 . Shots 2 | . 1 1 . Rammed 4 | . 3 1 . Targets Rammed 4 | . 3 1 . Kicked . | . . . . Crushed . | . . . . Highest Temperature 294 | 140 294 113 3 Average Temperature 74 | 48 89 54 2 Received Heat Transfer 141 | . 42 51 48 Effects 2 | . 2 . . Interference 2 | . 2 . . Siege Activations . | . . . . Robots Corrupted . | . . . . Combat Hostiles . | . . . . Parts Fried . | . . . . Impact Corruptions . | . . . . Robots Melted . | . . . . Combat Hostiles . | . . . . Parts Melted 4 | . 3 1 . Heat Transferred 1657 | 483 814 261 99 Parts Sabotaged . | . . . . Parts Stolen . | . . . . Parts Stripped . | . . . . Power Chain Reactions . | . . . . Alert | -11 -10 -10 -10 ------- Run | Yrd Mat Min Sub Peak Influence 418 | 15 418 406 . Initial 144 | . 9 144 . Average 250 | 3 226 297 . Maximum Alert Level 2 | . 2 2 . Low Security (%) 26 | 100 28 16 . Level 1 49 | . 64 47 . Level 2 23 | . 7 36 . Level 3 . | . . . . Level 4 . | . . . . Level 5 . | . . . . High Security . | . . . . Max Security . | . . . . Squads Dispatched 5 | . 4 1 . Investigation 3 | . 2 1 . Extermination . | . . . . Reinforcement 2 | . 2 . . Assault . | . . . . Garrison . | . . . . Intercept . | . . . . Searches Triggered . | . . . . Construction Impeded . | . . . . Haulers Reinforced . | . . . . Active Scanning Responses . | . . . . Cargo Convoy Interrupts . | . . . . Stealth | -11 -10 -10 -10 --------- Run | Yrd Mat Min Sub Distress Signals 4 | . 4 . . Communications Jammed . | . . . . Distress Signals . | . . . . Times Spotted 38 | . 20 7 11 Peak Tracking Total 4 | . 4 3 3 Tactical Retreats . | . . . . Traps | -11 -10 -10 -10 ------- Run | Yrd Mat Min Sub Traps Triggered 4 | . . . 4 Indirectly . | . . . . Trap Hack Attempts . | . . . . Triggered . | . . . . Disarmed . | . . . . Reprogrammed . | . . . . Reused . | . . . . Traps Extracted . | . . . . Installed . | . . . . Triggered . | . . . . Most Traps Carried 2 | . . . 2 Machines | -11 -10 -10 -10 ---------- Run | Yrd Mat Min Sub Machines Disabled 15 | . 2 12 1 Max in Single Turn 11 | . 1 11 1 Machines Repaired . | . . . . Machines Dismantled . | . . . . Machines Sabotaged . | . . . . Overloaded Fab Kills . | . . . . Hacking | -11 -10 -10 -10 --------- Run | Yrd Mat Min Sub Machines Accessed 7 | . 5 1 1 Terminals 4 | . 4 . . Fabricators . | . . . . Repair Stations . | . . . . Recycling Units 1 | . 1 . . Scanalyzers . | . . . . Garrison Access . | . . . . Total Hacks 23 | . 15 1 7 Successful 13 | . 5 1 7 Failed 10 | . 10 . . Catastrophic 4 | . 4 . . Database Lockouts . | . . . . Manual 5 | . 3 . 2 Terminals 11 | . 11 . . Fabricators . | . . . . Repair Stations . | . . . . Recycling Units 4 | . 4 . . Scanalyzers . | . . . . Garrison Access . | . . . . Terminal Hacks 12 | . 4 1 7 Record 6 | . . . 6 Robot Analysis 1 | . 1 . . Open Door 1 | . . 1 . Branch Access Points 1 | . 1 . . Locate Traps 2 | . 2 . . Derelict Proto ID Bank 1 | . . . 1 Fabricator Hacks . | . . . . Repair Station Hacks . | . . . . Recycling Unit Hacks 1 | . 1 . . Report Inventory 1 | . 1 . . Scanalyzer . | . . . . Garrison Access Hacks . | . . . . Unauthorized Hacks . | . . . . Terminals . | . . . . Fabricators . | . . . . Repair Stations . | . . . . Recycling Units . | . . . . Scanalyzers . | . . . . Garrison Access . | . . . . Data Cores Recovered . | . . . . Used . | . . . . Hacking Detections 5 | . 5 . . Full Trace Events 2 | . 2 . . Feedback Events . | . . . . Feedback Blocked . | . . . . Robot Schematics Acquired . | . . . . Robots Built . | . . . . Authchips . | . . . . Time . | . . . . Total Robot Build Rating . | . . . . Part Schematics Acquired . | . . . . Parts Built . | . . . . Authchips . | . . . . Time . | . . . . Total Part Build Rating . | . . . . Parts Repaired . | . . . . Time . | . . . . Parts Recycled . | . . . . Recycled Matter . | . . . . Retrieved Matter . | . . . . Retrieved Components . | . . . . Parts Scanalyzed . | . . . . Part Schematics Acquired . | . . . . Parts Damaged . | . . . . Bothacking | -11 -10 -10 -10 ------------ Run | Yrd Mat Min Sub Used RIF Installer . | . . . . Robots Hacked . | . . . . Non-combat . | . . . . Combat . | . . . . Robot Hacks Applied . | . . . . Relay Couplers Released . | . . . . Fabnet Peak Effective % . | . . . . Robots Rewired . | . . . . Allies Hacked . | . . . . Hacks Repelled . | . . . . Allies | -11 -10 -10 -10 -------- Run | Yrd Mat Min Sub Total Allies 3 | . . 3 . Largest Group 3 | . . 3 3 Highest-Rated Group 40 | . . 40 40 Highest-Rated Ally 16 | . . 16 16 Total Orders . | . . . . Ally Attacks 16 | . . 7 9 Total Damage 155 | . . 74 81 Kills 5 | . . 3 2 Allies Corrupted . | . . . . Allies Melted . | . . . . Intel | -11 -10 -10 -10 ------- Run | Yrd Mat Min Sub Robot Analysis Total 1 | . 1 . . Derelict Logs Recovered 2 | . . 1 1 Drone Launches . | . . . . Drone Recoveries . | . . . . Exploration | -11 -10 -10 -10 ------------- Run | Yrd Mat Min Sub Turns Passed 4767 | 136 693 1070 2868 Spaces Moved 2237 | 60 366 654 1157 Core 4 | 3 . . 1 Treads 1641 | 57 366 654 564 Legs 592 | . . . 592 Wheels . | . . . . Hover . | . . . . Flight . | . . . . Fastest Speed 50 | 50 160 160 160 Average Speed 200 | 156 160 160 238 Slowest Speed 450 | 160 160 160 450 Overloaded Moves . | . . . . Propulsion Burnouts . | . . . . Robots Hopped . | . . . . Cave-ins Triggered . | . . . . Exploration Rate (%) 61 | 5 65 100 76 Regions Visited 3 Branch Regions 2 Pre-discovered Areas 2 | . . 1 1 Known Exits Taken 1 | . 1 . . Unknown Exits Taken 2 | 1 . 1 . Scrap Searched 5 | . . 3 2 Spaces Dug . | . . . . Terrain Destroyed 122 | . 54 52 16 Melee . | . . . . Projectile 1 | . . . 1 AOE 121 | . 54 52 15 Terrain Rammed . | . . . . Walls Destroyed . | . . . . Machines Disabled . | . . . . Actions | -11 -10 -10 -10 --------- Run | Yrd Mat Min Sub Total 2389 | 80 429 670 1210 Wait 25 | . 20 3 2 Move 2234 | 59 365 653 1157 Hop . | . . . . Pick Up 23 | 4 7 6 6 Fast Attach 10 | 7 1 . 2 Attach 4 | . . . 4 Detach 2 | . 1 . 1 Swap 14 | 1 7 1 5 Drop 10 | . 4 2 4 Fire 49 | 9 21 4 15 Melee 14 | . . . 14 Ram . | . . . . Kick . | . . . . Crush 4 | . 3 1 . Escape Stasis . | . . . . Rewire . | . . . . Trap . | . . . . Miscellaneous . | . . . . Route ------- -11/Scrapyard -10/Materials (discovered 4 exits: [*Mat x2] / *Min x2) -10/Mines (discovered 3 exits: [*Mat x2] / *Sub) -10/Subcaves (discovered 1 exit: [*Mat]) History --------- Turn | Location | Event 12 | -11/Scrapyard | Discovered new exit (range 15) 137 | -11/Scrapyard | Entered Materials 185 | -10/Materials | Discovered new exit (range 15) 334 | -10/Materials | Build established: Mutant 412 | -10/Materials | Discovered new exit (range 9) 617 | -10/Materials | Identified exit to Mines 695 | -10/Materials | Discovered new exit (range 11) 830 | -10/Materials | Entered Mines 902 | -10/Mines | Learned 4 Materials zone layouts 908 | -10/Mines | Met a Derelict shopkeep closing up shop 1042 | -10/Mines | Discovered new exit (range 5) 1048 | -10/Mines | Learned location of Storage (-7) 1242 | -10/Mines | Assisted by bots powering up and referring to "LRC-V3" 1309 | -10/Mines | Found a damaged Exp. Sensor Array with a note attached 1314 | -10/Mines | Found Prototype Device 1446 | -10/Mines | Discovered new exit (range 15) 1675 | -10/Mines | Discovered new exit (range 9) 1900 | -10/Mines | Entered Subcaves 1900 | -10/Subcaves | Accompanied by 3 allies 2111 | -10/Subcaves | A swath of the cavern ceiling suddenly collapsed 2783 | -10/Subcaves | Shifting Twisted Machinery released Sub. Monowheel 2870 | -10/Subcaves | Lost 5 parts (1p2n2w) 3354 | -10/Subcaves | Visited 4L-MR0's lab 3499 | -10/Subcaves | Found Gun Armor 3720 | -10/Subcaves | Learned location of Zion (-7) 3720 | -10/Subcaves | Met a Zionite searching for "candidates" 3734 | -10/Subcaves | Shifting Twisted Machinery released Sub. Laser 3792 | -10/Subcaves | Shifting Twisted Machinery released Sub. Machine Gun 4374 | -10/Subcaves | Core integrity fell below 50% 4459 | -10/Subcaves | Discovered new exit (range 10) 4646 | -10/Subcaves | Learned Materials emergency access door positions 4759 | -10/Subcaves | Core integrity fell below 20% 4768 | -10/Subcaves | Destroyed by M9-F53(R) with Subdweller Beam Cannon Last Messages --------------- 04384_ ZE-HX6(R) affixes Scrap Shield Fragment to Scrap Shield. 04390_ Subatomizers dissect the Imp. Heat Sink. 04392_ ZE-HX6(R) affixes Scrap Shield Fragment to Scrap Shield. 04396_ Ion Engine destroyed. 04405_ Subatomizers dissect the Imp. Heat Sink. 04412_ ZE-HX6(R) affixes Scrap Shield Fragment to Scrap Shield. 04414_ ZE-HX6(R) destroyed. 04420_ Subatomizers dissect the Imp. Heat Sink. 04454_ Acquired 32 matter. 04459_ EXIT=FOUND 04462_ Subatomizers dissect the Disposable Heat Sink. 04646_ Acquired derelict log, extracted data. Data stored: Materials emergency access points. 04756_ Mak. Spear destroyed. 04765_ VU-J90(R) suffers critical hit (Smash). 04765_ VU-J90(R) knocked back. Map ----- +----------------------------------------------------+ | ?????????????????????????????????????????????### | | ?????????????????????????????????????????????# | | ??????????## ????????????????????????????????# # | | ????????## ???????????????????????????????# ## | | ???????? ?????????????????????????????###?? | | ????????? ?????????????????????????????????? | | ?????????? ?????????????????????????????????? | | ??????????? ????????????????????????????????? | | ???????????? ????????????????????????????????? | | ?????????????# ????????????????????????????????? | | ?????????????# ##??????????????????????????????? | | ?????????????# ##????????????????????????????? | | ?????????????# ##???????????????????????????? | | ?????????????? ##??????????????????????????? | | ?????????????????# #??????????????????????????? | | ?????????????????# ##??????????????????????????? | | ?????????????????# ##??????????????????????????? | | ?????????????????# #??????????????????????????? | | ?????????????????## #??????????????????????????? | | ?????????????????# ##????????######????????????? | | ?????????????????# #????????# ########?????? | | ????????????????## #####????# ## #?????? | | ????????????????# ###??# ####### | | ????????????????# RR #### ## # ## | | ???????????????## ## | | ??????????????## ###@ ### ### | | ??????????????# #?# #### #?## ### # | | ??????????????# ## ## ### ##??# ####?### | | ??????????????# ###### ## ##??###???## | | ??????????????# ### #????????# | | ?????????????## ## #??????## | | ????????????## ## ##??????#"" | | ????????????# ##########???????# """ | | ????????????# ###??????????????##""" | | ?? ????????# ##??????????????###" | | ?? ????# #????????????????## | | ??" ## #?????????????????# | | ??"" ####?????????????????# | | ?# #????????????????????? | | ??## ### #????????????????????? | | ???## #### #?## #???????????????????? | | ????# ????### #??#####???????????????????# | | ???# ???????# #?????????????????????????? | | ????##?##????? ????????????????????????? | | ??????# ???? ??????????????????????? | | ?????? ???? ## ### ?????????????????????? | | ?????? #??? ?## #??### ????????????????????? | | ??????# ##? ??# ##??????????????????????????? | | ??????# ?? ???## #???????????????????????????? | | ??????# #?? ?????# #???????????????????????????? | +----------------------------------------------------+ Best States ------------- Heat Dissipation 25 Energy Generation 10 Energy Capacity 250 Matter Stores 300 Matter Capacity 300 Sight Range 16 Terrain Scan Range 16 Terrain Scan Density 10 Evasion (%) 40 Targeting Accuracy 6 Recoil Reduction 2 Item Schematics ----------------- None Robot Schematics ------------------ None Fabricated ------------ Nothing Alien Tech Used ----------------- None Achievements -------------- It Was An Accident, I Swear Challenges ------------ None Game ------ Seed CombatIonicReplica Manual? 0 Play Time 00:32:49 Cumulative 35.9 hours Start 2024.08.18 @ 19:37:50 End 2024.08.18 @ 20:08:33 Sessions 1 Manual Loads 0 Difficulty Rogue Special Mode None Game No. 49 Rogue 49 Adventurer 0 Explorer 0 Win Type - Total 0 Types 0/0/0/0/0/0/0/0/0 Lore% 13 Gallery% 23 Achievement% 21 Wizard Run 0 Options --------- Layout 1 ASCII 0 Keyboard 0 Movement Numpad Keybinds 0 Fullscreen 1 Font 32/SmallcapsGlow Map View 50x40 Zoom Use 8% Tactical HUD 1 Map Filters NONE Filters NONE Steam 1 RUN: f4ba466d-9118-4091-9760-0f431be82516